bitfinex/quotes_ETHUSD_20251127
["timestamp","ask_amount","ask_price","bid_price","bid_amount"]
[1764280810478,0.80399101,3035.0,3034.9,3.20866155]
[1764280811253,0.30749101,3035.0,3034.9,3.20866155]
[1764280811677,0.30749101,3035.0,3034.9,6.50366303]
[1764280812178,0.30749101,3035.0,3034.9,3.66196155]
[1764280812355,0.30749101,3035.0,3034.9,6.95696303]
[1764280812555,0.30749101,3035.0,3034.9,7.42666303]
[1764280817383,0.30749101,3035.0,3034.9,8.49884026]
[1764280817785,0.30749101,3035.0,3034.9,11.70750181]
[1764280817963,0.208,3035.3,3035.0,0.09929]
[1764280818161,0.208,3035.3,3035.2,3.84436155]
[1764280818360,0.51541558,3035.3,3035.2,3.84436155]
[1764280818556,0.30741558,3035.3,3035.2,4.37671121]
[1764280818863,0.30741558,3035.3,3035.2,4.84641121]
[1764280819265,0.30741558,3035.3,3035.2,8.14108701]
[1764280819862,0.208,3035.7,3035.2,11.43576281]
[1764280820063,0.3074456,3035.6,3035.3,0.4697]
[1764280820262,0.3074456,3035.5,3035.3,1.6218883]
[1764280820458,0.3074456,3035.4,3035.3,1.6218883]
[1764280820693,0.3074456,3035.4,3035.3,1.1521883]
[1764280820880,0.3074456,3035.4,3035.3,1.6363883]
[1764280821263,0.3074456,3035.4,3035.3,5.31474985]
[1764280821689,0.3074456,3035.4,3035.3,8.6093171]
[1764280823868,0.3074456,3035.4,3034.9,0.001]
[1764280823869,1.2596456,3035.4,3034.9,0.001]
[1764280824071,0.4586,3035.0,3034.9,0.001]
[1764280824263,0.9740456,3035.0,3034.9,0.001]
[1764280824465,1.4660456,3035.0,3034.9,0.001]
[1764280826868,4.76093851,3035.0,3034.9,0.001]
[1764280827079,5.57061858,3035.0,3034.9,0.001]
[1764280828592,2.27572567,3035.0,3034.9,0.001]
[1764280828896,1.4660456,3035.0,3034.9,0.001]
[1764280829097,0.9740456,3035.0,3034.9,3.20966155]
[1764280829287,0.5154456,3035.0,3034.9,3.20966155]
[1764280829689,0.3074456,3035.0,3034.9,4.16356155]
[1764280829889,0.3074456,3035.0,3034.9,3.69386155]
[1764280830107,0.3074456,3035.0,3034.9,3.20966155]
[1764280830279,0.3074456,3035.0,3034.9,3.69386155]
[1764280830473,0.3074456,3035.0,3034.9,6.98886303]
[1764280830674,0.3074456,3035.0,3034.9,7.45856303]
[1764280830897,0.3074456,3035.0,3034.9,8.53393024]
[1764280831094,0.3074456,3035.0,3034.9,6.98886303]
[1764280834400,0.3074456,3035.0,3034.9,3.69386155]
[1764280834603,0.3074456,3035.0,3034.9,6.98886303]
[1764280835804,0.3074456,3035.0,3034.9,3.69386155]
[1764280836409,0.3074456,3035.0,3034.9,6.98886303]
[1764280840134,0.3074456,3035.0,3034.9,3.69386155]
[1764280840319,0.7740456,3035.0,3034.9,3.20966155]
[1764280841915,1.2302456,3035.0,3034.9,3.20966155]
[1764280842626,0.7740456,3035.0,3034.9,3.20966155]
[1764280844317,1.2302456,3035.0,3034.9,3.20966155]
[1764280845293,0.7740456,3035.0,3034.9,3.20966155]
[1764280846219,0.7740456,3035.0,3034.9,0.001]
[1764280846220,1.2302456,3035.0,3034.9,0.001]
[1764280846517,1.4382456,3035.0,3034.9,0.001]
[1764280846705,1.91567296,3035.0,3034.9,0.001]
[1764280847820,5.21056587,3035.0,3034.9,0.001]
[1764280850122,1.91567296,3035.0,3034.9,0.001]
[1764280850325,1.9157584,3035.0,3034.9,0.001]
[1764280853517,0.51553104,3035.0,3034.9,0.4867]
[1764280853896,0.51553104,3035.0,3034.9,0.001]
[1764280853897,0.98213104,3035.0,3034.9,0.001]
[1764280854299,1.43833104,3035.0,3034.9,0.001]
[1764280855731,4.77441011,3035.0,3034.9,0.001]
[1764280855924,5.5813218,3035.0,3034.9,0.001]
[1764280856601,2.28642889,3035.0,3034.9,0.001]
[1764280859002,5.5813218,3035.0,3034.9,0.001]
[1764280860407,6.29074169,3035.0,3034.9,0.001]
[1764280860601,7.1163358,3035.0,3034.9,0.001]
[1764280860818,7.07514964,3035.0,3034.9,0.001]
[1764280861902,6.97514964,3035.0,3034.9,0.001]
[1764280864307,7.07514964,3035.0,3034.9,0.001]
[1764280868910,6.97514964,3035.0,3034.9,0.001]
[1764280869413,7.10717831,3035.0,3034.9,0.001]
[1764280869926,7.20717831,3035.0,3034.9,0.001]
[1764280872361,7.10717831,3035.0,3034.9,0.001]
[1764280876355,7.99152376,3035.0,3034.9,0.001]
[1764280877168,8.09152376,3035.0,3034.9,0.001]
[1764280880537,7.99152376,3035.0,3034.9,0.001]
[1764280880732,8.09152376,3035.0,3034.9,0.001]
[1764280883979,7.99152376,3035.0,3034.9,0.001]
[1764280884277,8.09152376,3035.0,3034.9,0.001]
[1764280884472,7.20717831,3035.0,3034.9,0.001]
[1764280885946,0.1,3034.8,3034.1,0.2279]
[1764280886274,0.4676,3034.6,3033.8,0.1626]
[1764280886441,0.55672398,3034.5,3033.8,0.1626]
[1764280886644,0.30753104,3034.4,3033.8,0.1626]
[1764280886849,0.3487267,3034.3,3033.8,0.1626]
[1764280887053,0.30753104,3034.2,3033.9,0.42207056]
[1764280887252,0.30753104,3034.1,3034.0,0.81699629]
[1764280887732,0.30753104,3034.1,3034.0,1.00450629]
[1764280887934,0.30753104,3034.1,3034.0,1.29130629]
[1764280888237,0.30771758,3034.1,3034.0,4.42288866]
[1764280888760,0.30771758,3034.1,3034.0,7.71886756]
[1764280893635,0.208,3034.7,3034.3,0.09929]
[1764280893963,0.208,3035.1,3034.6,3.41838237]
[1764280894164,0.208,3035.1,3035.0,3.13158237]
[1764280894351,0.208,3035.1,3035.0,3.41838237]
[1764280894557,0.208,3035.1,3035.0,3.70518237]
[1764280895835,0.208,3035.1,3035.0,3.41838237]
[1764280896034,0.208,3035.1,3035.0,3.70518237]
[1764280896939,0.208,3035.1,3035.0,3.41838237]
[1764280898973,0.208,3035.1,3035.0,3.70518237]
[1764280899161,0.208,3035.1,3035.0,4.40520019]
[1764280900566,3.33564274,3035.4,3035.1,3.29478435]
[1764280900567,0.04118073,3035.4,3035.1,3.29478435]
[1764280900768,0.4758,3035.6,3035.1,3.13158237]
[1764280900973,0.04117937,3035.5,3035.2,0.38316002]
[1764280905674,0.30669965,3035.4,3035.2,0.38316002]
[1764280905864,0.04117937,3035.5,3035.2,0.38316002]
[1764280906065,0.30669967,3035.4,3035.2,3.67782167]
[1764280906373,0.04117937,3035.5,3035.2,3.6778211]
[1764280906573,0.04317937,3035.5,3035.3,0.2868]
[1764280908676,0.04317937,3035.5,3034.6,3.50329403]
[1764280908677,1.01166616,3035.4,3034.5,3.13158237]
[1764280908863,0.84484825,3035.3,3034.8,3.13158237]
[1764280909173,0.30656616,3035.2,3034.8,3.41838237]
[1764280909366,0.53828209,3035.3,3034.8,3.41838237]
[1764280909549,0.30658115,3035.2,3034.8,3.41838237]
[1764280909744,0.53828209,3035.3,3034.8,6.71343122]
[1764280909946,0.30658118,3035.2,3034.8,6.71343122]
[1764280910151,0.04118209,3035.3,3034.8,6.71343122]
[1764280910369,0.30661809,3035.2,3034.8,6.71343122]
[1764280910574,0.04118209,3035.3,3034.8,6.71343122]
[1764280910776,0.30663622,3035.2,3034.8,6.71343122]
[1764280910975,0.04118209,3035.3,3034.8,6.71343122]
[1764280911176,0.30663622,3035.2,3034.8,6.71343122]
[1764280911476,0.30663622,3035.1,3034.8,6.71343122]
[1764280911683,0.51498209,3035.3,3034.8,6.42663122]
[1764280911871,0.30668609,3035.2,3034.8,6.42663122]
[1764280912179,0.30668609,3035.1,3034.8,6.42663122]
[1764280912380,0.51498209,3035.3,3034.8,6.42663122]
[1764280912584,0.30674798,3035.2,3034.8,6.42663122]
[1764280912772,0.30674798,3035.1,3034.8,6.42663122]
[1764280912973,0.4738,3035.2,3034.8,6.42663122]
[1764280913174,0.30673954,3035.1,3034.8,6.42663122]
[1764280913482,0.4738,3035.2,3034.8,6.42663122]
[1764280913777,0.30681534,3035.1,3034.8,6.42663122]
[1764280913988,0.4738,3035.2,3034.8,6.42663122]
[1764280914165,0.30681446,3035.1,3034.8,6.42663122]
[1764280914364,0.4738,3035.2,3034.8,6.42663122]
[1764280914560,0.30690217,3035.1,3034.8,6.42663122]
[1764280914769,0.4738,3035.2,3034.8,6.42663122]
[1764280914969,0.30690217,3035.1,3034.6,3.29526527]
[1764280915282,0.51490217,3035.0,3034.6,3.29526527]
[1764280915482,0.30690217,3034.9,3034.6,3.29526527]
[1764280915657,0.30690217,3034.8,3034.6,3.29526527]
[1764280915857,0.6818,3035.0,3034.6,3.29526527]
[1764280916055,0.30699961,3034.9,3034.6,3.29526527]
[1764280916255,0.30699961,3034.8,3034.6,3.29526527]
[1764280916459,0.6818,3035.0,3034.6,3.29526527]
[1764280916657,0.3071278,3034.9,3034.6,3.29526527]
[1764280916872,0.3071278,3034.8,3034.6,3.29526527]
[1764280917086,0.6818,3035.0,3034.6,3.29526527]
[1764280917276,0.30712775,3034.9,3034.6,3.29526527]
[1764280917477,0.30712775,3034.8,3034.6,3.29526527]
[1764280917660,0.6818,3035.0,3034.6,3.29526527]
[1764280917862,0.30718381,3034.9,3034.6,3.29526527]
[1764280918177,0.30718381,3034.8,3034.6,3.29526527]
[1764280918377,0.6818,3035.0,3034.6,3.29526527]
[1764280918578,0.307223,3034.9,3034.6,3.29526527]
[1764280918777,0.307223,3034.8,3034.6,3.29526527]
[1764280918959,0.6818,3035.0,3034.6,3.29526527]
[1764280919159,0.30722283,3034.9,3034.6,3.29526527]
[1764280919458,0.30722283,3034.8,3034.6,3.29526527]
[1764280919660,0.30722283,3034.7,3034.6,3.29526527]
[1764280920390,0.30722283,3034.7,3034.6,3.58206527]
[1764280920687,0.30722283,3034.7,3034.6,6.7921965]
[1764280922481,0.30722283,3034.7,3034.6,7.0789965]
[1764280922739,0.30722283,3034.7,3034.6,8.11643972]
[1764280927186,0.30722283,3034.7,3034.6,7.82963972]
[1764280927484,0.30722283,3034.7,3034.6,6.7921965]
[1764280930489,0.30722283,3034.7,3034.3,3.21013123]
[1764280930490,1.23342283,3034.7,3034.3,3.21013123]
[1764280930667,0.30722283,3034.6,3034.5,3.21013123]
[1764280931166,0.30722283,3034.6,3034.5,3.78373123]
[1764280932964,0.30722283,3034.6,3034.5,7.46912442]
[1764280933391,0.002,3035.1,3034.8,0.09929]
[1764280933598,0.30715901,3035.0,3034.9,0.2868]
[1764280933802,0.002,3035.1,3034.9,0.5736]
[1764280933967,0.002,3035.1,3035.0,0.2868]
[1764280934168,0.30915929,3035.1,3035.0,0.5736]
[1764280934687,0.30915929,3035.1,3035.0,6.99386246]
[1764280934886,0.30915929,3035.1,3035.0,7.72563176]
[1764280935594,0.30915929,3035.1,3035.0,11.02052467]
[1764280935969,0.30915929,3035.1,3035.0,11.11981467]
[1764280936172,0.30915929,3035.1,3035.0,11.02052467]
[1764280937593,0.30915929,3035.1,3035.0,11.42602867]
[1764280937763,0.002,3035.5,3035.1,0.504794]
[1764280937971,0.002,3035.5,3035.4,3.49693123]
[1764280938499,0.002,3035.5,3035.4,3.78373123]
[1764280938896,0.002,3035.5,3035.4,3.88302123]
[1764280939112,0.89492405,3035.9,3035.4,3.88302123]
[1764280939113,0.002,3035.9,3035.4,6.99386246]
[1764280939271,0.002,3036.5,3036.1,0.2868]
[1764280939472,0.002,3036.5,3036.1,0.22339]
[1764280939690,0.002,3036.5,3035.8,0.405504]
[1764280939691,0.4547,3036.3,3036.2,3.21013123]
[1764280939973,0.002,3036.3,3036.2,3.21013123]
[1764280940280,0.9162,3036.3,3036.2,3.21013123]
[1764280940495,0.4635,3036.3,3036.2,3.21013123]
[1764280944007,0.4635,3036.3,3036.2,6.5037219]
[1764280944674,0.002,3036.3,3036.2,7.77037459]
[1764280944873,0.002,3036.3,3036.2,8.15646459]
[1764280949315,0.002,3036.3,3036.2,7.86966459]
[1764280950274,0.9162,3036.3,3036.2,3.21013123]
[1764280950906,0.002,3036.3,3036.2,3.21013123]
[1764280952297,0.002,3036.3,3036.2,6.5037219]
[1764280952932,0.002,3036.3,3036.2,6.52022657]
[1764280953138,0.002,3036.3,3036.2,8.39633212]
[1764280953301,0.002,3036.3,3036.2,8.19231745]
[1764280953506,0.002,3036.3,3036.2,8.47911745]
[1764280955134,0.002,3036.3,3036.2,8.09302745]
[1764280956202,0.002,3036.3,3036.2,8.19231745]
[1764280956410,0.002,3036.3,3036.2,8.47911745]
[1764280956937,0.002,3036.3,3036.2,8.19231745]
[1764280959142,0.002,3036.3,3036.2,8.09302745]
[1764280959349,0.4635,3036.3,3036.2,6.5037219]
[1764280960007,0.4635,3036.3,3036.2,3.29359067]
[1764280960212,0.4635,3036.3,3036.2,6.5037219]
[1764280960623,0.002,3036.3,3036.2,6.5037219]
[1764280962341,0.002,3036.3,3036.2,6.7905219]
[1764280962526,0.002,3036.3,3036.2,7.91605698]
[1764280962527,0.4643,3036.3,3036.2,7.91605698]
[1764280962732,0.9605,3036.3,3036.2,7.91605698]
[1764280963241,0.002,3036.5,3036.2,11.49644765]
[1764280963414,0.002,3036.5,3036.4,0.2868]
[1764280963615,0.002,3036.5,3036.4,0.38609]
[1764280964617,0.002,3036.5,3036.4,3.67946373]
[1764280965127,0.002,3036.5,3036.4,3.69596298]
[1764280968362,0.30916613,3036.5,3036.4,3.59667298]
[1764280970566,1.26966613,3036.5,3036.4,0.01649925]
[1764280970740,1.26966613,3036.5,3036.2,7.12366945]
[1764280970943,0.4643,3036.3,3036.2,7.1237219]
[1764280971140,0.77146613,3036.3,3036.2,7.1237219]
[1764280972134,0.77146613,3036.3,3036.2,7.2230119]
[1764280972135,0.30716613,3036.3,3036.2,7.2230119]
[1764280972440,0.30716613,3036.3,3036.2,8.61659572]
[1764280973241,0.30716613,3036.3,3036.2,8.51730572]
[1764280978381,0.30916613,3036.3,3036.2,8.51730572]
[1764280978890,1.26966613,3036.3,3036.1,0.001]
[1764280979050,0.77146613,3036.2,3036.1,0.001]
[1764280979383,1.26766613,3036.2,3036.1,0.001]
[1764280980284,1.26766613,3036.2,3036.1,3.21113123]
[1764280980485,5.01757363,3036.2,3036.1,0.001]
[1764280982490,1.72398296,3036.2,3036.1,0.001]
[1764280982656,5.01757363,3036.2,3036.1,0.001]
[1764280983782,1.72398296,3036.2,3036.1,0.001]
[1764280984796,5.01757363,3036.2,3036.1,0.001]
[1764280985501,1.72398296,3036.2,3036.1,0.001]
[1764280985879,1.26766613,3036.2,3036.1,0.001]
[1764280986204,0.77146613,3036.2,3036.1,0.001]
[1764280986376,0.30716613,3036.2,3036.1,0.001]
[1764280986572,0.30716613,3036.2,3036.1,0.2878]
[1764280986773,0.30716613,3036.2,3036.1,3.58149915]
[1764280986977,0.30716613,3036.2,3036.1,4.58345669]
[1764280987191,0.30716613,3036.2,3036.1,4.59996406]
[1764280988000,1.26766613,3036.2,3036.1,4.29665669]
[1764280988200,1.26766613,3036.2,3036.1,3.29469915]
[1764280988405,0.77146613,3036.2,3036.1,3.29469915]
[1764280990176,0.30716613,3036.2,3036.1,0.2878]
[1764280990381,0.30716613,3036.2,3036.1,0.30430737]
[1764280991501,0.30716613,3036.2,3036.1,0.2878]
[1764280992476,0.30716613,3036.2,3036.1,3.58149915]
[1764280992675,0.30716613,3036.2,3036.1,4.65373492]
[1764280995602,0.30716613,3036.2,3036.1,4.67024229]
[1764280997914,0.30716613,3036.2,3036.1,4.38344229]
[1764280999227,0.002,3036.3,3036.1,8.25074144]
[1764280999523,0.002,3036.3,3036.2,3.80065387]
[1764280999697,0.30877053,3036.3,3036.2,5.33826295]
[1764280999897,0.30877053,3036.3,3036.2,8.63185362]
[1764281000417,0.79477053,3036.3,3036.2,7.95896362]
[1764281000794,0.30877053,3036.3,3036.2,7.95896362]
[1764281003520,0.30877053,3036.3,3036.2,8.24576362]
[1764281004393,0.30877053,3036.3,3036.2,8.86576362]
[1764281007422,0.30877053,3036.3,3036.2,8.57896362]
[1764281012225,0.79477053,3036.3,3036.2,8.57896362]
[1764281015342,0.79513806,3036.3,3036.2,8.57896362]
[1764281015540,1.25403806,3036.3,3036.2,5.28537295]
[1764281015839,1.25403806,3036.3,3036.2,3.74776387]
[1764281016245,1.25403806,3036.3,3036.2,3.12776387]
[1764281016921,1.25403806,3036.3,3036.2,6.42135454]
[1764281022435,0.79513806,3036.3,3036.2,6.42135454]
[1764281022832,0.30913806,3036.3,3036.2,7.75836443]
[1764281023037,0.30913806,3036.3,3036.2,7.84114976]
[1764281026442,0.30913806,3036.3,3036.2,7.74185976]
[1764281027263,0.30913806,3036.3,3036.2,7.84114976]
[1764281028138,0.30913806,3036.3,3036.2,8.46114976]
[1764281028538,0.30947382,3036.3,3036.2,8.46114976]
[1764281032237,0.80227382,3036.3,3036.2,7.04135454]
[1764281032439,1.28627382,3036.3,3036.2,7.04135454]
[1764281032738,0.80227382,3036.3,3036.2,7.04135454]
[1764281034060,0.30947382,3036.3,3036.2,7.14064454]
[1764281034365,0.30947382,3036.3,3036.2,7.42744454]
[1764281034545,0.30947382,3036.3,3036.2,8.49975876]
[1764281034745,0.30947382,3036.3,3036.2,8.40046876]
[1764281038042,1.28627382,3036.3,3036.2,8.11366876]
[1764281038243,1.28627382,3036.3,3036.2,7.04135454]
[1764281038565,1.28627382,3036.3,3036.2,3.74776387]
[1764281039142,1.28627382,3036.3,3036.2,7.04135454]
[1764281039543,1.28627382,3036.3,3036.2,0.62]
[1764281040054,1.28627382,3036.3,3036.1,3.29464723]
[1764281040352,1.28427382,3036.2,3036.1,3.29464723]
[1764281041966,0.30747382,3036.2,3036.1,3.29464723]
[1764281042140,0.80027382,3036.2,3036.1,3.29464723]
[1764281042346,1.28427382,3036.2,3036.1,3.29464723]
[1764281042653,1.28427382,3036.2,3036.1,6.50144325]
[1764281044651,1.28427382,3036.2,3036.1,6.50149517]
[1764281048606,1.28427382,3036.2,3036.1,0.001]
[1764281049264,1.74224421,3036.2,3036.1,0.001]
[1764281049661,5.03583488,3036.2,3036.1,0.001]
[1764281049878,4.57786449,3036.2,3036.1,0.001]
[1764281052499,4.61903437,3036.2,3036.1,0.001]
[1764281054406,0.80027382,3036.2,3036.1,0.001]
[1764281055605,0.30747382,3036.2,3036.1,0.001]
[1764281055805,0.30747382,3036.2,3036.1,0.2878]
[1764281055994,0.30747382,3036.2,3036.1,0.001]
[1764281056905,0.30747382,3036.2,3036.1,3.29469915]
[1764281059089,0.30667523,3036.2,3036.1,3.58149915]
[1764281061100,0.30667523,3036.2,3036.1,3.29469915]
[1764281062115,0.30667523,3036.2,3036.1,3.58149915]
[1764281062621,0.79607523,3036.2,3036.1,0.001]
[1764281063423,0.30667523,3036.2,3036.1,0.001]
[1764281063824,0.30667523,3036.2,3036.1,3.29469915]
[1764281064125,0.30667523,3036.2,3036.1,3.58149915]
[1764281064420,0.30667523,3036.2,3036.1,4.68213978]
[1764281066026,0.30667523,3036.2,3036.1,4.69864715]
[1764281069228,0.30689087,3036.2,3036.1,4.69864715]
[1764281077613,0.30689087,3036.2,3036.1,4.41184715]
[1764281079948,0.30689087,3036.2,3036.1,4.69864715]
[1764281080941,0.30689087,3036.2,3036.1,4.41184715]
[1764281081124,0.30689087,3036.2,3036.1,3.31120652]
[1764281086556,1.24159087,3036.2,3036.1,0.001]
[1764281102666,0.30689087,3036.2,3036.1,0.2878]
[1764281102854,0.30689087,3036.2,3036.1,0.30430737]
[1764281103167,0.30689087,3036.2,3036.1,0.69039737]
[1764281103668,0.30679917,3036.2,3036.1,0.69039737]
[1764281104167,0.30679917,3036.2,3036.1,3.69729652]
[1764281104555,0.30679917,3036.2,3036.1,3.59800652]
[1764281105369,0.30679917,3036.2,3036.1,4.93623924]
[1764281107382,0.30679917,3036.2,3036.1,5.03552924]
[1764281108166,0.30679917,3036.2,3036.1,5.65552924]
[1764281114990,0.002,3036.3,3036.1,9.9810365]
[1764281115190,0.002,3036.3,3036.2,0.67289]
[1764281115396,0.002,3036.3,3036.2,2.24886457]
[1764281115568,0.002,3036.3,3036.2,2.57556857]
[1764281117974,0.002,3036.3,3036.2,5.86915924]
[1764281120182,0.002,3036.3,3036.2,6.48915924]
[1764281123301,0.4554,3036.3,3036.2,3.91359067]
[1764281123503,0.9433,3036.3,3036.2,3.91359067]
[1764281124797,0.76193033,3036.3,3036.1,0.001]
[1764281125001,0.9413,3036.2,3036.1,0.001]
[1764281125370,1.24784396,3036.2,3036.1,0.001]
[1764281126610,1.70217411,3036.2,3036.1,0.001]
[1764281126777,2.32217411,3036.2,3036.1,0.001]
[1764281126975,5.61576478,3036.2,3036.1,0.001]
[1764281130178,7.14779339,3036.2,3036.1,0.001]
[1764281130383,7.04775067,3036.2,3036.1,0.001]
[1764281130584,0.1,3035.9,3035.8,0.001]
[1764281130806,0.1,3035.8,3035.7,0.001]
[1764281131014,1.56633574,3035.8,3035.7,0.001]
[1764281131186,2.05423574,3035.8,3035.7,0.001]
[1764281131390,5.48025418,3035.8,3035.7,0.001]
[1764281131586,10.38224275,3035.8,3035.5,0.001]
[1764281131890,0.5534,3035.6,3035.5,0.001]
[1764281132082,2.44870557,3035.6,3035.5,0.001]
[1764281132315,2.93660557,3035.6,3035.5,0.001]
[1764281132688,0.1,3035.3,3034.4,0.17213204]
[1764281132900,0.4534,3034.5,3034.4,0.17213204]
[1764281133524,0.9413,3034.5,3034.4,0.17213204]
[1764281134387,0.70639178,3034.8,3034.4,0.17213204]
[1764281134586,0.4879,3034.7,3034.4,0.17213204]
[1764281134921,0.4534,3034.5,3034.4,0.17213204]
[1764281135284,0.70639178,3034.8,3034.4,3.46767646]
[1764281135486,0.208,3035.0,3034.5,3.12671768]
[1764281135819,0.30489136,3034.9,3034.5,3.14326414]
[1764281135999,1.40229178,3035.0,3034.5,3.14326414]
[1764281136200,0.79279103,3034.9,3034.5,3.14326414]
[1764281136396,0.4879,3034.9,3034.5,3.14326414]
[1764281136603,0.4879,3034.9,3034.5,3.12671768]
[1764281137798,0.4534,3034.6,3034.4,0.17213204]
[1764281138129,0.4534,3034.5,3034.4,0.17213204]
[1764281138725,0.9413,3034.5,3034.4,0.17213204]
[1764281139036,0.4879,3034.7,3034.4,0.17213204]
[1764281139801,0.4879,3034.7,3034.4,3.46767635]
[1764281140132,0.208,3035.0,3034.5,0.0165508]
[1764281140304,0.4644,3034.9,3034.5,0.0165508]
[1764281141612,0.50558751,3034.9,3034.4,3.46767635]
[1764281142598,0.50558751,3034.9,3034.4,3.48422553]
[1764281142840,0.50558751,3034.9,3034.5,0.001]
[1764281143132,4.33588256,3034.9,3034.5,0.001]
[1764281143313,0.4734,3034.6,3034.5,0.001]
[1764281143704,0.4734,3034.6,3034.1,0.001]
[1764281143705,1.1458,3034.6,3034.1,0.001]
[1764281143901,1.19899411,3034.2,3034.1,0.001]
[1764281144102,4.70275576,3034.2,3034.1,0.001]
[1764281144438,6.09903173,3034.2,3034.1,0.001]
[1764281145203,0.81343825,3034.2,3034.1,0.001]
[1764281145654,1.27783825,3034.2,3034.1,0.001]
[1764281147216,4.5735999,3034.2,3034.1,0.001]
[1764281147421,1.27783825,3034.2,3034.1,0.001]
[1764281148414,0.34003825,3034.2,3034.1,0.001]
[1764281148614,0.13203825,3034.2,3034.1,0.2888]
[1764281148809,0.6724,3034.6,3034.1,0.2888]
[1764281149005,1.23118705,3034.5,3034.1,0.2888]
[1764281149211,1.70463986,3034.5,3034.1,0.001]
[1764281149412,0.4644,3034.4,3033.9,3.09528043]
[1764281150337,1.24023986,3034.5,3034.3,0.2878]
[1764281150338,0.76678705,3034.5,3034.3,0.2878]
[1764281150520,0.208,3034.6,3034.4,0.2878]
[1764281151808,0.208,3034.6,3034.2,3.12671768]
[1764281152210,0.208,3034.6,3034.2,6.42246416]
[1764281153043,0.51247895,3034.6,3034.2,6.42246416]
[1764281153237,0.6724,3034.6,3034.2,6.42246416]
[1764281153410,0.208,3034.6,3034.2,6.42246416]
[1764281153612,0.208,3034.6,3034.5,0.2878]
[1764281153814,0.208,3034.6,3034.5,3.41451768]
[1764281154117,0.30470017,3034.6,3034.5,3.41451768]
[1764281155024,0.30470017,3034.6,3034.5,3.12671768]
[1764281159242,0.30470017,3034.6,3034.5,6.7099535]
[1764281159540,0.30470017,3034.6,3034.5,7.18665018]
[1764281159716,0.30470017,3034.6,3034.5,3.89121436]
[1764281160440,0.30470017,3034.6,3034.5,6.7099535]
[1764281160642,0.30470017,3034.6,3034.5,6.8092435]
[1764281160841,0.30470017,3034.6,3034.5,6.7099535]
[1764281161018,0.30670017,3034.6,3034.5,6.7099535]
[1764281161345,0.30670017,3034.6,3034.5,6.9977535]
[1764281161519,0.30670017,3034.6,3034.5,8.0890828]
[1764281161847,0.30670017,3034.6,3034.5,7.8012828]
[1764281163135,0.30670017,3034.6,3034.5,8.0890828]
[1764281164222,0.30670017,3034.6,3034.5,7.8012828]
[1764281164638,0.78010017,3034.6,3034.5,4.21804698]
[1764281164948,0.78010017,3034.6,3034.5,3.12671768]
[1764281166344,0.78010017,3034.6,3034.5,6.4221535]
[1764281166545,0.78010017,3034.6,3034.5,6.50577138]
[1764281166849,0.30670017,3034.6,3034.5,6.50577138]
[1764281167051,0.30670017,3034.6,3034.5,3.21033556]
[1764281168152,0.78010017,3034.6,3034.5,3.21033556]
[1764281168333,0.78010017,3034.6,3034.5,6.50577138]
[1764281170726,0.78010017,3034.6,3034.5,3.21033556]
[1764281171123,0.78010017,3034.6,3034.5,6.50577138]
[1764281171552,0.30670017,3034.6,3034.5,6.50577138]
[1764281171855,0.30670017,3034.6,3034.5,8.12351249]
[1764281172424,0.30670017,3034.6,3034.5,7.83571249]
[1764281174426,0.30670017,3034.6,3034.5,6.79357138]
[1764281179657,0.30670017,3034.6,3034.5,7.08137138]
[1764281180759,0.30670017,3034.6,3034.5,6.79357138]
[1764281181760,0.30670017,3034.6,3034.5,3.21033556]
[1764281182063,1.30510017,3034.6,3034.5,6.50577138]
[1764281182452,1.30510017,3034.6,3034.5,7.12577138]
[1764281183229,1.30510017,3034.6,3034.5,3.21033556]
[1764281183561,1.30510017,3034.6,3034.5,6.50577138]
[1764281185738,1.30510017,3034.6,3034.5,3.21033556]
[1764281186461,1.30510017,3034.6,3034.1,3.21033556]
[1764281186662,0.4988,3034.2,3034.1,3.21033556]
[1764281187158,1.30535532,3034.2,3034.1,3.21033556]
[1764281188244,1.30535532,3034.2,3034.1,6.50620583]
[1764281191465,0.80575532,3034.2,3034.1,6.50620583]
[1764281191668,0.30695532,3034.2,3034.1,3.29587027]
[1764281192052,0.30695532,3034.2,3034.1,3.58367027]
[1764281194760,0.30695532,3034.2,3034.1,3.29587027]
[1764281197542,0.80575532,3034.2,3034.1,3.29587027]
[1764281197767,1.30535532,3034.2,3034.1,3.29587027]
[1764281200071,1.30535532,3034.2,3034.0,6.50630678]
[1764281200278,1.22615532,3034.1,3034.0,6.50630678]
[1764281203173,0.30695532,3034.1,3034.0,10.00444234]
[1764281203349,0.30695532,3034.1,3034.0,6.79410678]
[1764281204477,0.30695532,3034.1,3034.0,6.50630678]
[1764281204979,0.30695532,3034.1,3034.0,6.79410678]
[1764281205272,1.22615532,3034.1,3034.0,6.50630678]
[1764281205878,1.22615532,3034.1,3033.9,3.29701169]
[1764281206079,1.22615532,3034.0,3033.9,3.29701169]
[1764281206860,1.22615532,3034.0,3033.9,0.001]
[1764281213069,0.30695532,3034.0,3033.9,0.001]
[1764281213786,0.76675532,3034.0,3033.9,0.001]
[1764281214289,0.30695532,3034.0,3033.9,0.001]
[1764281214786,0.76675532,3034.0,3033.9,0.001]
[1764281215383,1.22815532,3034.0,3033.9,0.001]
[1764281217592,0.76875532,3034.0,3033.9,0.001]
[1764281218362,1.22815532,3034.0,3033.9,0.001]
[1764281219198,0.30895532,3034.0,3033.9,3.49913556]
[1764281219490,0.30895532,3034.0,3033.9,2.0681731]
[1764281220691,0.30895532,3034.0,3033.9,5.07646064]
[1764281222864,0.002,3034.0,3033.9,8.9801002]
[1764281223075,0.002,3034.0,3033.9,9.4395002]
[1764281224264,0.002,3034.0,3033.9,10.16509431]
[1764281225580,0.002,3034.4,3034.2,0.09929]
[1764281225898,0.002,3034.4,3034.3,3.21033556]
[1764281226094,0.76873098,3034.4,3034.3,3.21033556]
[1764281226406,1.22853098,3034.4,3034.3,3.21033556]
[1764281227297,1.22853098,3034.4,3034.3,6.50598859]
[1764281227504,0.30933098,3034.4,3034.3,7.77396318]
[1764281227711,0.30933098,3034.4,3034.3,8.16105318]
[1764281228206,0.30933098,3034.4,3034.3,7.87325318]
[1764281228625,0.30933098,3034.4,3034.3,7.79233425]
[1764281229168,0.30933098,3034.4,3034.3,7.69304425]
[1764281230500,0.30922975,3034.4,3034.3,7.69304425]
[1764281231074,0.79442975,3034.4,3034.3,7.40524425]
[1764281231298,1.25192975,3034.4,3034.3,7.40524425]
[1764281232276,0.79442975,3034.4,3034.3,7.40524425]
[1764281233201,0.30922975,3034.4,3034.3,7.40524425]